Cogmind - Beta 16.1 @@@ ROGUE MODE // 2026.03.26 @ 01:54:20 Player: KURIIRI Result: Destroyed by 6S-E0V(R) with Subdweller Beam Cannon Performance ------------- Evolutions (0) 0 Regions Visited (2) 400 Robots Destroyed (54) 270 Value Destroyed (1224) 1224 Prototype IDs (15) 300 Alien Tech Used (0) 0 Bonus (-13) -13 TOTAL SCORE: 2181 Bonus ------- Friendly Fire -13 Cogmind --------- Core Integrity 0/250 Matter 188/300 Energy 100/100 System Corruption 1% Temperature Cool (9) Movement Rolling (110) Location -10/Subcaves Parts ------- > --- POWER (1) -------- (None) > --- PROPULSION (2) --- Subdweller Monowheel Subdweller Monowheel > --- UTILITY (2) ------ Large Storage Unit Makeshift Light Armor Plating > --- WEAPON (2) ------- Hammer > --- INVENTORY (15) --- Light Treads Light Treads Arachnoskeleton Improved Heat Sink Light Armor Plating Light Armor Plating Medium Laser Subdweller Laser Subdweller Beam Cannon Subdweller Machine Gun Subdweller Machine Gun Barrage Gun Ripper Peak State ------------ > --- POWER ------------ Ion Engine > --- PROPULSION ------- Light Treads Spiked Treads > --- UTILITY ---------- Large Storage Unit Makeshift Light Armor Plating > --- WEAPON ----------- Medium Laser Subdweller Beam Cannon > --- INVENTORY -------- Light Treads Light Treads Arachnoskeleton Improved Heat Sink Light Armor Plating Light Armor Plating Subdweller Laser Subdweller Beam Cannon Subdweller Machine Gun Barrage Gun Grenade Launcher Hammer Ripper [Rating: 16] Favorites ----------- Power Ion Engine Engine Ion Engine Propulsion Light Treads Treads Light Treads Leg Aluminum Leg Wheel Subdweller Monowheel Utility Large Storage Unit Device Improved Heat Sink Storage Large Storage Unit Protection Makeshift Light Armor Plating Weapon Assault Rifle Energy Gun Medium Laser Energy Cannon Subdweller Beam Cannon Ballistic Gun Assault Rifle Launcher Grenade Launcher Impact Weapon Hammer Build | -11 -10 -10 ------- Run | Yrd Mat Sub Slots Evolved . | . . . Power . | . . . Propulsion . | . . . Utility . | . . . Weapon . | . . . Parts Attached 24 | 3 10 11 Power 2 | . 1 1 Engine 2 | . 1 1 Core . | . . . Reactor . | . . . Propulsion 6 | 2 1 3 Treads 4 | 2 1 1 Leg . | . . . Wheel 2 | . . 2 Hover . | . . . Flight . | . . . Utility 5 | 1 3 1 Device 2 | 1 1 . Storage 1 | . 1 . Processor . | . . . Hackware . | . . . Protection 2 | . 1 1 Artifact . | . . . Weapon 11 | . 5 6 Energy Gun 2 | . . 2 Energy Cannon 2 | . . 2 Ballistic Gun 5 | . 3 2 Ballistic Cannon . | . . . Launcher 1 | . 1 . Special Weapon . | . . . Impact Weapon 1 | . 1 . Slashing Weapon . | . . . Piercing Weapon . | . . . Special Melee Weapon . | . . . Unidentified Prototypes . | . . . Parts Lost 7 | . 2 5 Power 2 | . 1 1 Propulsion 2 | . . 2 Utility 2 | . 1 1 Weapon 1 | . . 1 Highest Loss Streak 3 | . 1 3 To Critical Strikes . | . . . Average Backups 12 | 5 11 13 Power . | 1 1 . Propulsion 2 | 3 2 3 Utility 3 | . 3 3 Weapon 5 | 1 4 6 Tool/Special . | . . . Unused Backups 16 | . 4 12 Power 1 | . 1 . Propulsion 5 | . 1 4 Utility 6 | . 2 4 Weapon 4 | . . 4 Tool/Special . | . . . Average Slot Usage (%) 95 | . 99 93 Engine 11 | . 13 9 Treads 26 | . 28 25 Device 2 | . 6 . Storage 14 | . 14 14 Protection 11 | . 7 13 Energy Gun 5 | . . 10 Energy Cannon 3 | . . 5 Ballistic Gun 12 | . 26 2 Impact Weapon 4 | . . 7 Peak Build Rating 16 | 9 10 16 Average Rating 11 | 7 8 13 On Entrance 7 | 6 9 8 Avg Prop Armor Cover (%) . | . . . Naked Turns . | . . . Heaviest Build 41 | 13 33 41 Greatest Support 40 | 40 40 40 Greatest Overweight (x) 8 | . . 8 Average Overweight (x) . | . . . Largest Inventory Capacity 15 | 8 15 15 Average Capacity 14 | 8 14 15 Most Carried 15 | 6 15 15 Average Carried 13 | 5 11 14 Final Capacity 15 | 8 15 15 Final Carried 15 | 4 15 15 Class Distribution -------------------- 100% | Mutant Dominant Class ---------------- Mutant | -10/Materials Mutant | -10/Subcaves Resources | -11 -10 -10 ----------- Run | Yrd Mat Sub Matter Collected 1359 | 272 842 245 Remotely . | . . . Salvage Created 1327 | 88 679 560 Parts 88 | 7 54 27 Haulers Intercepted 1 | . 1 . Recyclers Shooed 1 | . 1 . Parts Field Recycled . | . . . Retrieved Matter . | . . . Parts Self-Destructed 9 | . . 9 Prevented . | . . . Parts Restored . | . . . Kills | -11 -10 -10 ------- Run | Yrd Mat Sub Combat Hostiles Destroyed 42 | . 22 20 Melee 5 | . . 5 Guns 12 | . 12 . Cannons 2 | . . 2 AOE 19 | . 10 9 Classes Destroyed 10 | 2 6 2 Worker 3 | . 3 . Builder 1 | . 1 . Tunneler 2 | 2 . . Hauler 1 | . 1 . Recycler 2 | 1 1 . Watcher 3 | . 3 . Swarmer 18 | . 11 7 Grunt 11 | . 11 . Artisan 2 | . . 2 Subdweller 13 | . . 13 Best Kill Streak 8 | 2 8 4 Combat Bots Only 6 | . 6 4 Max Kills in Single Turn 4 | 1 4 4 Gunslinging . | . . . Exploded 4 | . 3 4 Melee 1 | . . 1 Uniques/NPCs Destroyed . | . . . Combat | -11 -10 -10 -------- Run | Yrd Mat Sub Hostile Shots Fired 160 | . 80 80 Missed 36 | . 17 19 Hits 124 | . 63 61 Projectile 124 | . 63 61 AOE 1 | . . 1 Critical Strikes 2 | . 1 1 Damage Taken 1864 | . 706 1158 Core 261 | . 58 203 Absorbed by Shields . | . . . Regen/Repaired (Parts) 95 | . 95 . Core Remaining (%) 100 | 100 . . Volleys Fired 137 | 7 85 45 Largest 2 | 2 2 2 Hottest 80 | 40 40 80 Shots Fired 218 | 14 158 46 Gun 170 | 14 148 8 Cannon 22 | . . 22 Launcher 26 | . 10 16 Special . | . . . Kinetic 167 | 14 148 5 Thermal 25 | . . 25 Explosive 26 | . 10 16 Electromagnetic . | . . . Robot Hit Streak 15 | 3 10 15 Robot Miss Streak 3 | 1 3 2 Penetration Max . | . . . Secondary Targets . | . . . Shots Hit Robots 145 | 8 84 53 Core Hits 66 | 4 41 21 Critical Kills 5 | . 2 3 Critical Parts Destroyed 6 | . . 6 Critical Strikes 11 | . 2 9 Destroy 2 | . 2 . Smash 9 | . . 9 Melee Attacks 55 | . 4 51 Impact 55 | . 4 51 Slashing . | . . . Piercing . | . . . Sneak Attacks 1 | . 1 . Combat Hostiles . | . . . Follow-up Attacks . | . . . Damage Inflicted 4067 | 100 1934 2033 Guns 1197 | 100 1009 88 Cannons 300 | . . 300 Explosions 1809 | . 843 966 Melee 761 | . 82 679 Ramming . | . . . Kinetic 1152 | 100 1009 43 Thermal 451 | . 106 345 Explosive 1703 | . 737 966 Electromagnetic . | . . . Impact 761 | . 82 679 Slashing . | . . . Piercing . | . . . Highest Corruption 1 | . 1 1 Average Corruption 1 | . 1 1 Corruption Purged . | . . . Corruption Blocked . | . . . Effects 30 | . 12 18 Message Errors 9 | . 4 5 Matter Fused 8 | . 3 5 Heat Flow Errors 4 | . . 4 Energy Discharges 5 | . 2 3 Data Loss (major) 2 | . 2 . Misfires 1 | . . 1 Alerts 1 | . 1 . Overload Shots . | . . . Overflow Damage 282 | . 102 180 Projectiles . | . . . Explosions 94 | . 78 16 Melee 188 | . 24 164 Knockbacks 7 | . 1 6 Impact 7 | . 1 6 Kinetic . | . . . Secondary . | . . . Self-Inflicted Damage 45 | . 7 38 Shots 4 | . 2 2 Rammed . | . . . Targets Rammed . | . . . Kicked . | . . . Crushed . | . . . Highest Temperature 236 | . 14 236 Average Temperature 36 | . 5 48 Received Heat Transfer 567 | . 318 249 Siege Activations . | . . . Martial Activations . | . . . Shielding Activations . | . . . Robots Disrupted . | . . . Combat Hostiles . | . . . Robots Corrupted 4 | . . 4 Combat Hostiles 4 | . . 4 Parts Fried 6 | . . 6 Impact Corruptions 7 | . 1 6 Robots Melted . | . . . Combat Hostiles . | . . . Parts Melted . | . . . Heat Transferred 507 | . 50 457 Parts Sabotaged . | . . . Parts Stolen . | . . . Parts Stripped . | . . . Power Chain Reactions . | . . . Alert | -11 -10 -10 ------- Run | Yrd Mat Sub Maximum Alert Level 1 | . 1 . Low Security (%) 75 | 100 74 . Level 1 24 | . 25 . Level 2 . | . . . Level 3 . | . . . Level 4 . | . . . Level 5 . | . . . High Security . | . . . Max Security . | . . . Peak Influence 347 | 10 347 . Initial 3 | . 3 . Average 131 | 1 134 . Influence Increases 1009 | 15 814 180 Destroy 0b10 Robot/C 580 | . 440 140 Destroy 0b10 Robot/NC 60 | 15 45 . Destroy Leader 108 | . 98 10 Successful Hack 30 | . 30 . Select Force Hacks 60 | . 60 . Disable Machine 60 | . 60 . Destroy Structure 66 | . 66 . Lose Combat Pursuer 45 | . 15 30 Influence Decreases 971 | 10 497 464 Entered New Map 157 | . 2 155 Time Decay 774 | 10 495 269 Lost Part 40 | . . 40 Squads Dispatched 4 | . 4 . Investigation 3 | . 3 . Extermination . | . . . Reinforcement 1 | . 1 . Assault . | . . . Garrison . | . . . Intercept . | . . . Searches Triggered . | . . . Construction Impeded . | . . . Haulers Reinforced . | . . . Active Scanning Responses . | . . . Cargo Convoy Interrupts . | . . . Stealth | -11 -10 -10 --------- Run | Yrd Mat Sub Distress Signals . | . . . Communications Jammed . | . . . Distress Signals . | . . . Times Spotted 52 | . 29 23 Peak Tracking Total 6 | . 6 6 Tactical Retreats 3 | . 1 2 Traps | -11 -10 -10 ------- Run | Yrd Mat Sub Traps Triggered 2 | . 2 . Indirectly . | . . . Trap Hack Attempts . | . . . Triggered . | . . . Disarmed . | . . . Reprogrammed . | . . . Reused . | . . . Traps Extracted . | . . . Installed . | . . . Triggered . | . . . Machines | -11 -10 -10 ---------- Run | Yrd Mat Sub Machines Disabled 5 | . 4 1 Max in Single Turn 4 | . 4 1 Machines Repaired . | . . . Machines Dismantled . | . . . Machines Sabotaged . | . . . Overloaded Fab Kills . | . . . Hacking | -11 -10 -10 --------- Run | Yrd Mat Sub Machines Accessed 12 | . 10 2 Terminals 7 | . 7 . Fabricators . | . . . Repair Stations 1 | . 1 . Recycling Units 2 | . 2 . Scanalyzers . | . . . Garrison Access . | . . . Total Hacks 36 | . 26 10 Successful 27 | . 17 10 Failed 9 | . 9 . Catastrophic . | . . . Database Lockouts . | . . . Manual 18 | . 18 . Terminals 22 | . 22 . Fabricators . | . . . Repair Stations 2 | . 2 . Recycling Units 2 | . 2 . Scanalyzers . | . . . Garrison Access . | . . . Terminal Hacks 15 | . 5 10 Record 8 | . . 8 Robot Analysis 3 | . 3 . Prototype ID Bank 1 | . 1 . Open Door 1 | . . 1 Locate Traps 1 | . 1 . Proto ID Catalog 1 | . . 1 Fabricator Hacks . | . . . Repair Station Hacks 2 | . 2 . Scan Component 1 | . 1 . Repair 1 | . 1 . Recycling Unit Hacks . | . . . Scanalyzer . | . . . Garrison Access Hacks . | . . . Unauthorized Hacks 10 | . 10 . Terminals 8 | . 8 . Botnet 1 | . 1 . Operators 1 | . 1 . Skim 6 | . 6 . Fabricators . | . . . Repair Stations . | . . . Recycling Units 2 | . 2 . Tunnel 2 | . 2 . Scanalyzers . | . . . Garrison Access . | . . . Data Cores Recovered . | . . . Used . | . . . Hacking Detections 8 | . 8 . Full Trace Events . | . . . Feedback Events . | . . . Feedback Blocked . | . . . Robot Schematics Acquired . | . . . Robots Built . | . . . Authchips . | . . . Time . | . . . Total Robot Build Rating . | . . . Part Schematics Acquired . | . . . Parts Built . | . . . Authchips . | . . . Time . | . . . Total Part Build Rating . | . . . Part Studies Acquired . | . . . Parts Repaired 1 | . 1 . Time 26 | . 26 . Parts Recycled . | . . . Recycled Matter . | . . . Retrieved Matter . | . . . Retrieved Components . | . . . Parts Scanalyzed . | . . . Part Schematics Acquired . | . . . Parts Damaged . | . . . Bothacking | -11 -10 -10 ------------ Run | Yrd Mat Sub Used RIF Installer . | . . . Robots Hacked . | . . . Non-combat . | . . . Combat . | . . . Robot Hacks Applied . | . . . Relay Couplers Released . | . . . Fabnet Peak Effective % . | . . . Robots Rewired . | . . . Allies Hacked . | . . . Hacks Repelled . | . . . Allies | -11 -10 -10 -------- Run | Yrd Mat Sub Total Allies . | . . . Largest Group . | . . . Highest-Rated Group . | . . . Highest-Rated Ally . | . . . Total Orders . | . . . Ally Attacks . | . . . Total Damage . | . . . Kills . | . . . Allies Corrupted . | . . . Allies Melted . | . . . Intel | -11 -10 -10 ------- Run | Yrd Mat Sub Active Infowar (turns) 68 | 28 40 . Terrain 68 | 28 40 . Robot Analysis Total 3 | . 3 . Derelict Logs Recovered 1 | . . 1 Drone Launches . | . . . Drone Recoveries . | . . . Exploration | -11 -10 -10 ------------- Run | Yrd Mat Sub Turns Passed 4502 | 54 1883 2565 Spaces Moved 2175 | 21 921 1233 Core 1 | . . 1 Treads 2031 | 12 921 1098 Legs 9 | 9 . . Wheels 134 | . . 134 Hover . | . . . Flight . | . . . Fastest Speed 110 | 120 160 110 Average Speed 157 | 142 160 155 Slowest Speed 450 | 160 160 450 Overloaded Moves . | . . . Propulsion Burnouts . | . . . Robots Hopped . | . . . Potential Cave-ins . | . . . Cave-ins Triggered . | . . . Exploration Rate (%) 58 | 2 97 76 Regions Visited 2 Branch Regions 1 Pre-discovered Areas 4 | . 3 1 Known Exits Taken . | . . . Unknown Exits Taken 2 | 1 1 . Scrap Searched 16 | . . 16 Spaces Dug 24 | . 18 6 Terrain Destroyed 114 | . 72 42 Melee 2 | . . 2 Projectile 1 | . . 1 AOE 111 | . 72 39 Terrain Rammed . | . . . Walls Destroyed . | . . . Machines Disabled . | . . . Actions | -11 -10 -10 --------- Run | Yrd Mat Sub Total 2940 | 32 1161 1747 Wait 502 | . 123 379 Move 2173 | 20 920 1233 Hop . | . . . Pick Up 18 | . 12 6 Fast Attach 9 | 1 2 6 Attach 3 | 2 . 1 Detach 3 | . . 3 Swap 22 | . 12 10 Drop 18 | 2 3 13 Fire 137 | 7 85 45 Melee 55 | . 4 51 Ram . | . . . Kick . | . . . Crush . | . . . Escape Stasis . | . . . Rewire . | . . . Trap . | . . . Miscellaneous . | . . . Route ------- -11/Scrapyard -10/Materials (discovered 5 exits: *Mat x3 / [*Min] / *Sub) -10/Subcaves (discovered 2 exits: *Mat x2) History --------- Turn | Location | Event 20 | -11/Scrapyard | Discovered new exit (range 3) 55 | -11/Scrapyard | Entered Materials 312 | -10/Materials | Build established: Mutant 664 | -10/Materials | Discovered new exit (range 13) 813 | -10/Materials | Learned 4 Recycling zone layouts 957 | -10/Materials | Discovered new exit (range 16) 1060 | -10/Materials | Learned Storage trap positions 1070 | -10/Materials | Discovered new exit (range 9) 1118 | -10/Materials | Identified exit to Materials 1202 | -10/Materials | Learned Storage terminal intel 1231 | -10/Materials | Repaired Assault Rifle 1255 | -10/Materials | Derelicts attacked the area 1306 | -10/Materials | Learned location of Mines (-10) 1375 | -10/Materials | Learned location of 2 exits from Subcaves 1925 | -10/Materials | Discovered new exit (range 8) 1938 | -10/Materials | Entered Subcaves 1939 | -10/Subcaves | Approached by a straggling Scientist 1939 | -10/Subcaves | Identified exit to Materials 1955 | -10/Subcaves | Learned location of Zion (-6) 1955 | -10/Subcaves | Met a Zionite searching for "candidates" 2007 | -10/Subcaves | Lost 3 allies 2390 | -10/Subcaves | Visited 4L-MR0's lab 2414 | -10/Subcaves | Found Arachnoskeleton 2556 | -10/Subcaves | Disturbed a concealed Subdweller 2625 | -10/Subcaves | A swath of the cavern ceiling suddenly collapsed 2758 | -10/Subcaves | Shifting Twisted Machinery released Sub. Machine Gun 2769 | -10/Subcaves | Shifting Twisted Machinery released Battle Cannon 2865 | -10/Subcaves | Ambushed by Subdwellers from Twisted Machinery 2904 | -10/Subcaves | Ambushed by Subdweller buried in earth 3104 | -10/Subcaves | Shifting Twisted Machinery released Scrap Shield 3125 | -10/Subcaves | Shifting Twisted Machinery released Sub. Power Source 3654 | -10/Subcaves | Learned Materials garrison access intel 3752 | -10/Subcaves | Shifting Twisted Machinery released Sub. Machine Gun 3756 | -10/Subcaves | Shifting Twisted Machinery released Piercing Trap 3850 | -10/Subcaves | A swath of the cavern ceiling suddenly collapsed 4271 | -10/Subcaves | Core integrity fell below 50% 4348 | -10/Subcaves | Lost 3 parts (2n1w) 4425 | -10/Subcaves | Core integrity fell below 20% 4503 | -10/Subcaves | Destroyed by 6S-E0V(R) with Subdweller Beam Cannon Last Messages --------------- 04308_ Acquired 10 matter. 04309_ Lgt. Treads destroyed. 04312_ JD-W69(R) knocked back. 04314_ JD-W69(R) affixes Scrap Shield Fragment to Scrap Shield. 04317_ Spk. Treads destroyed. 04321_ JD-W69(R) suffers critical hit (Smash). 04321_ JD-W69(R) destroyed. 04328_ Acquired Sub. Monowheel. 04333_ Acquired 27 matter. 04341_ System corrupted: Heat flow error (+276). 04352_ The unstable cave ceiling collapses. 04411_ System corrupted: Matter fused (-7). 04426_ Critical hit (Destroy). 04427_ 1A-V1C(R) suffers critical hit (Smash). 04427_ 1A-V1C(R) destroyed. 04429_ Acquired 34 matter. 04432_ Dropped Sub. Laser. 04432_ Acquired Sub. Laser. 04434_ Acquired Sub. Monowheel. Map ----- +----------------------------------------------------+ | ?????????????????????????????????????????????????? | | ?????????????????????????????????????????????????? | | ?????????????????????????????????????????????????? | | ?????????????????????????????????????????????????? | | ?????????????????????????????????????????????????? | | ?????????????????????????????????????????????????? | | ?????????????????????????????????????????????????? | | ?????????????????????????????????????????????????? | | ?????????